[Event "1st Sakatam Open 2024"]
[Site "Guwahati"]
[Date "2024.03.24"]
[Round "2.3"]
[White "Subhayan Kundu"]
[Black "Shyamal, Sarkar"]
[Result "1-0"]
[ECO "B33"]
[WhiteElo "2353"]
[BlackElo "1542"]
[Annotator "RC"]
[PlyCount "75"]
[EventDate "2024.03.24"]
[EventType "swiss"]
[EventCountry "IND"]
[SourceTitle "playchess.com"]
[Source "ChessBase"]
[SourceQuality "1"]
[TimeControl "5400+30"]

1. e4 {[%emt 0:00:02]} c5 {[%emt 0:00:07]} 2. Nf3 {[%emt 0:00:04]} Nc6 {[%emt 0:00:23]} 3. d4 {[%emt 0:00:05]} cxd4 {[%emt 0:00:08]} 4. Nxd4 {[%emt 0:00:03]} Nf6 {[%emt 0:00:32]} 5. Nc3 {[%emt 0:00:06]} e5 {[%emt 0:00:38]} 6. Ndb5 {[%emt 0:00:06]} d6 {[%emt 0:00:09]} 7. Nd5 {[%emt 0:00:05]} Nxd5 {[%emt 0:00:25]} 8. exd5 {[%emt 0:00:07]} Nb8 {[%emt 0:00:32]} 9. c4 {[%emt 0:00:09]} a6 {[%emt 0:00:40]} 10. Nc3 {[%emt 0:00:07]} f5 {[%emt 0:02:35]} 11. Be2 {[%emt 0:01:02]} Nd7 {[%emt 0:01:08]} 12. O-O {[%emt 0:00:38]} g6 {[%emt 0:00:15]} 13. Be3 {[%emt 0:01:31]} Bg7 {[%emt 0:00:36]} 14. f3 {[%emt 0:00:09]} O-O {[%emt 0:00:24]} 15. Rc1 {[%emt 0:00:12]} Nf6 {[%emt 0:02:14]} 16. b4 {[%emt 0:00:08]} b6 {[%emt 0:03:48]} 17. Kh1 {[%emt 0:06:27]} Bd7 {[%emt 0:03:42]} 18. Na4 {[%emt 0:03:13]} Rb8 {[%emt 0:06:04]} 19. Nc3 {[%emt 0:00:22]} h6 {[%emt 0:01:09]} 20. f4 {[%emt 0:05:24]} e4 {[%emt 0:02:49]} 21. Qd2 {[%emt 0:06:49]} h5 {[%emt 0:01:25]} 22. Bd4 {[%emt 0:01:05]} Ng4 {[%emt 0:03:23]} 23. Bxg4 {[%emt 0:01:52]} hxg4 {[%emt 0:00:25]} 24. c5 {[%emt 0:00:17]} bxc5 {[%emt 0:01:45]} 25. bxc5 {[%emt 0:00:04]} dxc5 {[%emt 0:00:22]} 26. Bxc5 {[%emt 0:00:27]} Re8 {[%emt 0:00:38]} 27. Rfe1 {[%emt 0:08:07]} Qf6 {[%emt 0:04:20]} 28. d6 {[%emt 0:04:03]} Rec8 {[%emt 0:01:30]} 29. Nd5 {[%emt 0:00:10]} Qh4 {[%emt 0:05:59]} 30. Ne7+ {[%emt 0:01:12]} Kh7 {[%emt 0:01:04]} 31. Nxc8 {[%emt 0:05:25]} Rxc8 {[%emt 0:00:02]} 32. Bf2 {[%emt 0:00:26]} Qd8 {[%emt 0:00:58]} 33. Bd4 {[%emt 0:00:17]} Bc6 {[%emt 0:03:17]} 34. Bxg7 {[%emt 0:00:28]} Kxg7 {[%emt 0:00:04]} 35. Rc5 {[%emt 0:01:13]} g3 {[%emt 0:01:18]} 36. Qc3+ {[%emt 0:00:17]} Qf6 {[%emt 0:02:04]} 37. Qxf6+ {[%emt 0:00:08]} Kxf6 {[%emt 0:00:08]} 38. Rec1 {[%emt 0:00:05]} 1-0

[Event "1st Sakatam Open 2024"]
[Site "Guwahati"]
[Date "2024.03.24"]
[Round "2.4"]
[White "Ashutosh Buragohain"]
[Black "Mishra, Neeraj-Kumar"]
[Result "0-1"]
[ECO "B50"]
[WhiteElo "1539"]
[BlackElo "2150"]
[Annotator "RC"]
[PlyCount "88"]
[EventDate "2024.03.24"]
[EventType "swiss"]
[EventCountry "IND"]
[SourceTitle "playchess.com"]
[Source "ChessBase"]
[SourceQuality "1"]
[TimeControl "5400+30"]

1. e4 {[%emt 0:00:07]} c5 {[%emt 0:00:17]} 2. Nf3 {[%emt 0:00:20]} e6 {[%emt 0:00:17]} 3. Nc3 {[%emt 0:00:56]} a6 {[%emt 0:00:35]} 4. d3 {[%emt 0:00:55]} Nc6 {[%emt 0:00:30]} 5. g3 {[%emt 0:00:57]} d6 {[%emt 0:01:02]} 6. Bg2 {[%emt 0:00:13]} Nf6 {[%emt 0:00:37]} 7. O-O {[%emt 0:00:08]} Be7 {[%emt 0:00:04]} 8. Re1 {[%emt 0:00:13]} Qc7 {[%emt 0:00:21]} 9. Bf4 {[%emt 0:01:50]} Nd7 {[%emt 0:00:46]} 10. Bg5 {[%emt 0:02:10]} Bxg5 {[%emt 0:05:08]} 11. Nxg5 {[%emt 0:00:05]} h6 {[%emt 0:00:27]} 12. Nh3 {[%emt 0:03:19]} O-O {[%emt 0:00:52]} 13. f4 {[%emt 0:00:45]} b5 {[%emt 0:00:30]} 14. f5 {[%emt 0:01:46]} Nf6 {[%emt 0:03:30]} 15. fxe6 {[%emt 0:01:55]} fxe6 {[%emt 0:00:31]} 16. Nf4 {[%emt 0:02:57]} b4 {[%emt 0:00:14]} 17. Nb1 {[%emt 0:01:05]} e5 {[%emt 0:00:44]} 18. Nd5 {[%emt 0:02:23]} Nxd5 {[%emt 0:01:38]} 19. exd5 {[%emt 0:00:07]} Ne7 {[%emt 0:00:31]} 20. c4 {[%emt 0:10:35]} bxc3 {[%emt 0:00:35]} 21. Nxc3 {[%emt 0:00:06]} Rb8 {[%emt 0:00:40]} 22. b3 {[%emt 0:01:20]} Bf5 {[%emt 0:00:51]} 23. Rf1 {[%emt 0:03:51]} Qd7 {[%emt 0:00:45]} 24. Qd2 {[%emt 0:02:01]} Rb4 {[%emt 0:02:07]} 25. Be4 {[%emt 0:01:27]} Rbb8 {[%emt 0:04:57]} 26. Bg2 {[%emt 0:03:17]} Bh3 {[%emt 0:05:02]} 27. Qe2 {[%emt 0:07:35]} Bg4 {[%emt 0:04:28]} 28. Qd2 {[%emt 0:01:31]} Bh5 {[%emt 0:01:17]} 29. Be4 {[%emt 0:05:26]} Qg4 {[%emt 0:02:13]} 30. Qg2 {[%emt 0:02:30]} Qg5 {[%emt 0:01:22]} 31. Rae1 {[%emt 0:02:16]} Rxf1+ {[%emt 0:00:34]} 32. Qxf1 {[%emt 0:00:08]} Qd2 {[%emt 0:00:43]} 33. Rc1 {[%emt 0:01:49]} Qe3+ {[%emt 0:01:30]} 34. Kg2 {[%emt 0:02:53]} Rf8 {[%emt 0:00:53]} 35. Qe1 {[%emt 0:02:01]} Bf3+ {[%emt 0:01:00]} 36. Kh3 {[%emt 0:03:47]} Qg5 {[%emt 0:00:20]} 37. Bxf3 {[%emt 0:00:26]} Rxf3 {[%emt 0:00:09]} 38. Qd1 {[%emt 0:03:05]} Qf5+ {[%emt 0:02:16]} 39. Kg2 {[%emt 0:00:52]} Rxd3 {[%emt 0:00:20]} 40. Qe2 {[%emt 0:01:29]} Nxd5 {[%emt 0:00:48]} 41. Nxd5 {[%emt 0:01:26]} Rxd5 {[%emt 0:00:06]} 42. Qxa6 {[%emt 0:01:14]} Rd2+ {[%emt 0:00:14]} 43. Kh1 {[%emt 0:00:31]} Qf3+ {[%emt 0:00:06]} 44. Kg1 {[%emt 0:00:01]} Qg2# {[%emt 0:00:08]} 0-1

[Event "1st Sakatam Open 2024"]
[Site "Guwahati"]
[Date "2024.03.24"]
[Round "2.5"]
[White "Balkishan, A.."]
[Black "Bhargab Debnath"]
[Result "1-0"]
[ECO "D33"]
[WhiteElo "2108"]
[BlackElo "1539"]
[Annotator "RC"]
[PlyCount "56"]
[EventDate "2024.03.24"]
[EventType "swiss"]
[EventCountry "IND"]
[SourceTitle "playchess.com"]
[Source "ChessBase"]
[SourceQuality "1"]
[TimeControl "5400+30"]

1. c4 {[%emt 0:01:16]} Nf6 {[%emt 0:00:36]} 2. Nc3 {[%emt 0:00:07]} c5 {[%emt 0:00:34]} 3. g3 {[%emt 0:00:18]} e6 {[%emt 0:00:44]} 4. Nf3 {[%emt 0:00:29]} Nc6 {[%emt 0:00:27]} 5. Bg2 {[%emt 0:00:08]} d5 {[%emt 0:00:33]} 6. cxd5 {[%emt 0:00:06]} exd5 {[%emt 0:00:10]} 7. d4 {[%emt 0:00:21]} Be6 {[%emt 0:01:08]} 8. O-O {[%emt 0:00:12]} Be7 {[%emt 0:00:28]} 9. b3 {[%emt 0:02:40]} O-O {[%emt 0:01:20]} 10. Bb2 {[%emt 0:00:10]} h6 {[%emt 0:04:05]} 11. dxc5 {[%emt 0:00:21]} Bxc5 {[%emt 0:00:19]} 12. Rc1 {[%emt 0:00:22]} Bb6 {[%emt 0:00:44]} 13. Na4 {[%emt 0:00:55]} Re8 {[%emt 0:01:19]} 14. Nxb6 {[%emt 0:01:06]} axb6 {[%emt 0:00:09]} 15. a3 {[%emt 0:00:52]} Ne4 {[%emt 0:07:02]} 16. Nd4 {[%emt 0:00:32]} Nc5 {[%emt 0:05:28]} 17. b4 {[%emt 0:01:41]} Na4 {[%emt 0:00:25]} 18. Ba1 {[%emt 0:00:03]} Nxd4 {[%emt 0:01:21]} 19. Qxd4 {[%emt 0:00:16]} f6 {[%emt 0:00:33]} 20. Rfd1 {[%emt 0:00:09]} Qd7 {[%emt 0:01:14]} 21. e4 {[%emt 0:00:35]} Bf7 {[%emt 0:01:01]} 22. exd5 {[%emt 0:00:17]} Rad8 {[%emt 0:01:15]} 23. d6 {[%emt 0:00:47]} Bg6 {[%emt 0:07:52]} 24. Qd5+ {[%emt 0:00:28]} Kh8 {[%emt 0:00:33]} 25. Qxb7 {[%emt 0:00:08]} Qxb7 {[%emt 0:00:42]} 26. Bxb7 {[%emt 0:00:05]} Be4 {[%emt 0:01:16]} 27. Bxe4 {[%emt 0:00:21]} Rxe4 {[%emt 0:00:05]} 28. d7 {[%emt 0:00:07]} Kh7 {[%emt 0:02:13]} 1-0

[Event "1st Sakatam Open 2024"]
[Site "Guwahati"]
[Date "2024.03.24"]
[Round "2.6"]
[White "Syed Jahan Hussain"]
[Black "Kumar, Gaurav"]
[Result "0-1"]
[ECO "B33"]
[WhiteElo "1538"]
[BlackElo "2049"]
[Annotator "RC"]
[PlyCount "64"]
[EventDate "2024.03.24"]
[EventType "swiss"]
[EventCountry "IND"]
[SourceTitle "playchess.com"]
[Source "ChessBase"]
[SourceQuality "1"]
[TimeControl "5400+30"]

1. e4 {[%emt 0:00:03]} c5 {[%emt 0:00:16]} 2. Nf3 {[%emt 0:00:09]} Nc6 {[%emt 0:00:06]} 3. d4 {[%emt 0:00:10]} cxd4 {[%emt 0:00:07]} 4. Nxd4 {[%emt 0:00:07]} Nf6 {[%emt 0:00:04]} 5. f3 {[%emt 0:01:15]} e5 {[%emt 0:00:13]} 6. Nb3 {[%emt 0:00:41]} d6 {[%emt 0:02:13]} 7. c4 {[%emt 0:00:09]} Nh5 {[%emt 0:09:28]} 8. Be3 {[%emt 0:01:09]} Be7 {[%emt 0:00:34]} 9. Nc3 {[%emt 0:00:09]} O-O {[%emt 0:00:09]} 10. Qd2 {[%emt 0:00:43]} Be6 {[%emt 0:09:51]} 11. Be2 {[%emt 0:00:19]} Nf4 {[%emt 0:01:05]} 12. Bxf4 {[%emt 0:02:16]} exf4 {[%emt 0:00:16]} 13. O-O-O {[%emt 0:00:18]} Ne5 {[%emt 0:01:29]} 14. Nd5 {[%emt 0:03:33]} Rc8 {[%emt 0:01:59]} 15. Kb1 {[%emt 0:01:12]} Nxc4 {[%emt 0:07:47]} 16. Bxc4 {[%emt 0:01:25]} Rxc4 {[%emt 0:00:10]} 17. Nxe7+ {[%emt 0:00:23]} Qxe7 {[%emt 0:00:09]} 18. Qxd6 {[%emt 0:00:18]} Qg5 {[%emt 0:00:36]} 19. g3 {[%emt 0:01:14]} fxg3 {[%emt 0:00:18]} 20. hxg3 {[%emt 0:00:44]} Rc6 {[%emt 0:00:54]} 21. Qd4 {[%emt 0:02:06]} Bxb3 {[%emt 0:02:09]} 22. axb3 {[%emt 0:00:16]} Ra6 {[%emt 0:01:29]} 23. Rh4 {[%emt 0:02:35]} Qa5 {[%emt 0:01:44]} 24. Rd3 {[%emt 0:03:15]} Rc8 {[%emt 0:06:32]} 25. Rc3 {[%emt 0:02:23]} Rxc3 {[%emt 0:00:27]} 26. bxc3 {[%emt 0:00:38]} Qa1+ {[%emt 0:00:08]} 27. Kc2 {[%emt 0:00:35]} Ra2+ {[%emt 0:00:09]} 28. Kd3 {[%emt 0:00:20]} Qf1+ {[%emt 0:00:10]} 29. Ke3 {[%emt 0:00:28]} Qc1+ {[%emt 0:00:22]} 30. Kd3 {[%emt 0:00:51]} Rd2+ {[%emt 0:00:10]} 31. Kc4 {[%emt 0:00:05]} Rxd4+ {[%emt 0:00:14]} 32. Kxd4 {[%emt 0:00:21]} Qg1+ {[%emt 0:55:12]} 0-1

[Event "1st Sakatam Open 2024"]
[Site "Guwahati"]
[Date "2024.03.24"]
[Round "2.7"]
[White "Sinha, Subhash Chandra"]
[Black "Singh, Y. Dhanabir"]
[Result "0-1"]
[ECO "B76"]
[WhiteElo "2065"]
[BlackElo "1996"]
[Annotator "RC"]
[PlyCount "86"]
[EventDate "2024.03.24"]
[EventType "swiss"]
[EventCountry "IND"]
[SourceTitle "playchess.com"]
[Source "ChessBase"]
[SourceQuality "1"]
[TimeControl "5400+30"]

1. e4 {[%emt 0:00:16]} c5 {[%emt 0:00:06]} 2. Nf3 {[%emt 0:00:13]} d6 {[%emt 0:00:04]} 3. d4 {[%emt 0:00:18]} cxd4 {[%emt 0:00:04]} 4. Nxd4 {[%emt 0:00:13]} Nf6 {[%emt 0:00:04]} 5. Nc3 {[%emt 0:00:50]} g6 {[%emt 0:00:05]} 6. Be3 {[%emt 0:03:21]} Bg7 {[%emt 0:00:04]} 7. Qd2 {[%emt 0:02:17]} O-O {[%emt 0:01:10]} 8. f3 {[%emt 0:00:34]} Nc6 {[%emt 0:00:17]} 9. O-O-O {[%emt 0:00:33]} d5 {[%emt 0:00:05]} 10. Nxc6 {[%emt 0:09:06]} bxc6 {[%emt 0:00:15]} 11. exd5 {[%emt 0:00:14]} cxd5 {[%emt 0:00:07]} 12. Nxd5 {[%emt 0:02:12]} Nxd5 {[%emt 0:00:05]} 13. Qxd5 {[%emt 0:01:41]} Qc7 {[%emt 0:00:11]} 14. Qxa8 {[%emt 0:00:25]} Bf5 {[%emt 0:00:12]} 15. Qxf8+ {[%emt 0:00:40]} Kxf8 {[%emt 0:00:06]} 16. Bd3 {[%emt 0:02:05]} Qe5 {[%emt 0:02:42]} 17. Kd2 {[%emt 0:01:36]} Bxd3 {[%emt 0:02:05]} 18. Kxd3 {[%emt 0:01:18]} Qxb2 {[%emt 0:00:21]} 19. Ke2 {[%emt 0:01:26]} f5 {[%emt 0:02:30]} 20. Rd2 {[%emt 0:11:32]} Qxa2 {[%emt 0:02:06]} 21. Rc1 {[%emt 0:03:33]} Qc4+ {[%emt 0:04:13]} 22. Kf2 {[%emt 0:00:46]} a5 {[%emt 0:00:27]} 23. Rb1 {[%emt 0:02:20]} f4 {[%emt 0:00:57]} 24. Ba7 {[%emt 0:01:12]} Qc7 {[%emt 0:01:58]} 25. Bb6 {[%emt 0:01:19]} Qc3 {[%emt 0:00:17]} 26. Rbd1 {[%emt 0:01:57]} a4 {[%emt 0:01:32]} 27. Bd4 {[%emt 0:00:04]} Bxd4+ {[%emt 0:01:30]} 28. Rxd4 {[%emt 0:00:03]} g5 {[%emt 0:00:43]} 29. h4 {[%emt 0:04:56]} a3 {[%emt 0:02:05]} 30. hxg5 {[%emt 0:00:52]} a2 {[%emt 0:00:21]} 31. Rxf4+ {[%emt 0:00:38]} Kg7 {[%emt 0:00:15]} 32. Re4 {[%emt 0:04:40]} Qxc2+ {[%emt 0:00:31]} 33. Re2 {[%emt 0:01:27]} Qxd1 {[%emt 0:00:06]} 34. Rxa2 {[%emt 0:00:52]} Qd4+ {[%emt 0:00:22]} 35. Kg3 {[%emt 0:02:18]} Qe5+ {[%emt 0:00:03]} 36. Kf2 {[%emt 0:01:07]} Qc5+ {[%emt 0:00:14]} 37. Kf1 {[%emt 0:00:23]} Qxg5 {[%emt 0:00:42]} 38. Re2 {[%emt 0:00:38]} h5 {[%emt 0:00:28]} 39. Re4 {[%emt 0:00:07]} Kf6 {[%emt 0:00:14]} 40. Kf2 {[%emt 0:00:24]} e5 {[%emt 0:01:13]} 41. g3 {[%emt 0:00:32]} Qd2+ {[%emt 0:00:33]} 42. Kf1 {[%emt 0:01:04]} Qh2 {[%emt 0:00:13]} 43. g4 {[%emt 0:00:25]} h4 {[%emt 0:00:35]} 0-1

[Event "1st Sakatam Open 2024"]
[Site "Guwahati"]
[Date "2024.03.24"]
[Round "2.8"]
[White "Arpan Das"]
[Black "Koustav Baruah"]
[Result "1-0"]
[ECO "B07"]
[WhiteElo "2374"]
[BlackElo "1533"]
[Annotator "RC"]
[PlyCount "79"]
[EventDate "2024.03.24"]
[EventType "swiss"]
[EventCountry "IND"]
[SourceTitle "playchess.com"]
[Source "ChessBase"]
[SourceQuality "1"]
[TimeControl "5400+30"]

1. d4 {[%emt 0:09:07]} d6 {[%emt 0:01:15]} 2. e4 {[%emt 0:00:05]} Nf6 {[%emt 0:00:36]} 3. Nc3 {[%emt 0:00:06]} g6 {[%emt 0:00:28]} 4. Be3 {[%emt 0:00:11]} Bg7 {[%emt 0:00:54]} 5. Qd2 {[%emt 0:00:36]} Nc6 {[%emt 0:03:16]} 6. h3 {[%emt 0:00:27]} a6 {[%emt 0:01:46]} 7. Nf3 {[%emt 0:00:10]} O-O {[%emt 0:02:18]} 8. Bd3 {[%emt 0:00:12]} e5 {[%emt 0:01:56]} 9. d5 {[%emt 0:00:08]} Nb4 {[%emt 0:03:24]} 10. Be2 {[%emt 0:00:19]} a5 {[%emt 0:01:21]} 11. a3 {[%emt 0:00:08]} Na6 {[%emt 0:00:08]} 12. b4 {[%emt 0:00:06]} a4 {[%emt 0:00:57]} 13. O-O {[%emt 0:00:15]} Bd7 {[%emt 0:00:46]} 14. Bg5 {[%emt 0:00:22]} c6 {[%emt 0:02:26]} 15. dxc6 {[%emt 0:00:12]} Bxc6 {[%emt 0:00:14]} 16. b5 {[%emt 0:00:03]} Nc5 {[%emt 0:03:34]} 17. bxc6 {[%emt 0:00:11]} bxc6 {[%emt 0:00:18]} 18. Rfd1 {[%emt 0:00:14]} Qa5 {[%emt 0:02:07]} 19. Qe3 {[%emt 0:01:56]} Rad8 {[%emt 0:03:38]} 20. Bc4 {[%emt 0:00:15]} Rd7 {[%emt 0:01:28]} 21. Rd2 {[%emt 0:00:42]} Rfd8 {[%emt 0:03:57]} 22. Rad1 {[%emt 0:00:08]} Ne6 {[%emt 0:02:57]} 23. Bxf6 {[%emt 0:00:51]} Bxf6 {[%emt 0:00:30]} 24. Bxe6 {[%emt 0:00:07]} fxe6 {[%emt 0:00:14]} 25. Ne2 {[%emt 0:00:54]} Kg7 {[%emt 0:02:13]} 26. Qc3 {[%emt 0:00:32]} Qa8 {[%emt 0:01:00]} 27. Qe3 {[%emt 0:02:56]} c5 {[%emt 0:03:06]} 28. Nh2 {[%emt 0:00:48]} h6 {[%emt 0:02:20]} 29. g3 {[%emt 0:01:18]} Qc6 {[%emt 0:06:22]} 30. Ng4 {[%emt 0:00:18]} g5 {[%emt 0:01:39]} 31. f4 {[%emt 0:00:32]} exf4 {[%emt 0:00:44]} 32. gxf4 {[%emt 0:00:05]} gxf4 {[%emt 0:02:30]} 33. Nxf4 {[%emt 0:00:11]} Bd4 {[%emt 0:01:14]} 34. Nxe6+ {[%emt 0:00:10]} Kh8 {[%emt 0:00:42]} 35. Rxd4 {[%emt 0:00:10]} Rg8 {[%emt 0:01:19]} 36. Qxh6+ {[%emt 0:00:17]} Rh7 {[%emt 0:00:11]} 37. Qf6+ {[%emt 0:00:03]} Rhg7 {[%emt 0:00:17]} 38. Rd5 {[%emt 0:00:08]} Qe8 {[%emt 0:00:29]} 39. Nxg7 {[%emt 0:00:25]} Rxg7 {[%emt 0:00:03]} 40. Rg5 {[%emt 0:00:08]} 1-0

[Event "1st Sakatam Open 2024"]
[Site "Guwahati"]
[Date "2024.03.24"]
[Round "3.1"]
[White "Ramesh Parmar"]
[Black "Kaustuv, Kundu"]
[Result "0-1"]
[ECO "B45"]
[WhiteElo "1690"]
[BlackElo "2388"]
[Annotator "RC"]
[PlyCount "52"]
[EventDate "2024.03.24"]
[EventType "swiss"]
[EventCountry "IND"]
[SourceTitle "playchess.com"]
[Source "ChessBase"]
[SourceQuality "1"]
[TimeControl "5400+30"]

1. e4 {[%emt 0:07:21]} c5 {[%emt 0:04:57]} 2. Nf3 {[%emt 0:00:08]} e6 {[%emt 0:00:13]} 3. d4 {[%emt 0:00:22]} cxd4 {[%emt 0:00:06]} 4. Nxd4 {[%emt 0:00:07]} Nc6 {[%emt 0:00:04]} 5. Be3 {[%emt 0:04:31]} Nf6 {[%emt 0:00:24]} 6. Nc3 {[%emt 0:00:26]} Bb4 {[%emt 0:00:49]} 7. f3 {[%emt 0:02:38]} d5 {[%emt 0:02:35]} 8. Bb5 {[%emt 0:08:01]} Bd7 {[%emt 0:06:03]} 9. Bxc6 {[%emt 0:02:42]} bxc6 {[%emt 0:00:23]} 10. e5 {[%emt 0:00:41]} Nh5 {[%emt 0:07:52]} 11. a3 {[%emt 0:07:28]} Qh4+ {[%emt 0:01:01]} 12. g3 {[%emt 0:04:42]} Bxc3+ {[%emt 0:00:33]} 13. bxc3 {[%emt 0:00:09]} Qh3 {[%emt 0:00:05]} 14. Kd2 {[%emt 0:02:07]} f6 {[%emt 0:01:02]} 15. exf6 {[%emt 0:02:54]} Nxf6 {[%emt 0:00:49]} 16. Nb3 {[%emt 0:01:55]} O-O {[%emt 0:01:30]} 17. Nc5 {[%emt 0:01:31]} e5 {[%emt 0:00:43]} 18. Qf1 {[%emt 0:04:23]} Qh5 {[%emt 0:00:53]} 19. g4 {[%emt 0:02:58]} Qe8 {[%emt 0:01:30]} 20. h3 {[%emt 0:06:35]} Ne4+ {[%emt 0:10:59]} 21. Nxe4 {[%emt 0:00:30]} dxe4 {[%emt 0:00:06]} 22. Qc4+ {[%emt 0:00:25]} Be6 {[%emt 0:00:05]} 23. Qxe4 {[%emt 0:05:19]} Bd5 {[%emt 0:00:21]} 24. Qa4 {[%emt 0:02:06]} Rxf3 {[%emt 0:02:18]} 25. Raf1 {[%emt 0:13:32]} Rd8 {[%emt 0:04:23]} 26. Ke2 {[%emt 0:04:29]} Qf7 {[%emt 0:00:22]} 0-1

[Event "1st Sakatam Open 2024"]
[Site "Guwahati"]
[Date "2024.03.24"]
[Round "3.2"]
[White "Arpan Das"]
[Black "Tarun N"]
[Result "1-0"]
[ECO "B81"]
[WhiteElo "2374"]
[BlackElo "1688"]
[Annotator "RC"]
[PlyCount "110"]
[EventDate "2024.03.24"]
[EventType "swiss"]
[EventCountry "IND"]
[SourceTitle "playchess.com"]
[Source "ChessBase"]
[SourceQuality "1"]
[TimeControl "5400+30"]

1. e4 {[%emt 0:01:07]} c5 {[%emt 0:00:03]} 2. Nf3 {[%emt 0:00:07]} d6 {[%emt 0:00:20]} 3. d4 {[%emt 0:00:04]} cxd4 {[%emt 0:00:05]} 4. Nxd4 {[%emt 0:00:03]} Nf6 {[%emt 0:00:06]} 5. Nc3 {[%emt 0:00:03]} a6 {[%emt 0:00:12]} 6. h3 {[%emt 0:00:38]} b5 {[%emt 0:05:07]} 7. g4 {[%emt 0:03:54]} Bb7 {[%emt 0:00:41]} 8. Bg2 {[%emt 0:00:09]} e6 {[%emt 0:03:25]} 9. a3 {[%emt 0:01:07]} Qc7 {[%emt 0:08:17]} 10. O-O {[%emt 0:04:31]} Be7 {[%emt 0:02:30]} 11. f4 {[%emt 0:06:32]} Nc6 {[%emt 0:03:14]} 12. Nde2 {[%emt 0:00:58]} O-O {[%emt 0:12:03]} 13. g5 {[%emt 0:02:52]} Nd7 {[%emt 0:02:27]} 14. Be3 {[%emt 0:04:20]} Nb6 {[%emt 0:20:21]} 15. b3 {[%emt 0:02:41]} Rac8 {[%emt 0:02:11]} 16. Kh1 {[%emt 0:02:40]} Rfe8 {[%emt 0:06:23]} 17. Qe1 {[%emt 0:02:37]} Nd7 {[%emt 0:06:34]} 18. Qg3 {[%emt 0:01:24]} Bf8 {[%emt 0:03:08]} 19. h4 {[%emt 0:03:01]} b4 {[%emt 0:02:27]} 20. Na2 {[%emt 0:17:19]} bxa3 {[%emt 0:12:47]} 21. Qf2 {[%emt 0:06:11]} a5 {[%emt 0:06:11]} 22. c4 {[%emt 0:01:52]} Nb4 {[%emt 0:01:08]} 23. Nd4 {[%emt 0:02:58]} Nc5 {[%emt 0:00:39]} 24. Nc3 {[%emt 0:00:55]} a2 {[%emt 0:01:38]} 25. Rfd1 {[%emt 0:03:18]} Qb8 {[%emt 0:00:21]} 26. Qe2 {[%emt 0:03:10]} Qa8 {[%emt 0:00:20]} 27. Nxa2 {[%emt 0:05:32]} Nxa2 {[%emt 0:01:22]} 28. Qxa2 {[%emt 0:00:36]} Bxe4 {[%emt 0:00:00]} 29. Rg1 {[%emt 0:02:16]} Rb8 {[%emt 0:00:19]} 30. Nb5 {[%emt 0:01:03]} Bxg2+ {[%emt 0:00:14]} 31. Rxg2 {[%emt 0:00:03]} Qe4 {[%emt 0:00:07]} 32. Bxc5 {[%emt 0:01:32]} dxc5 {[%emt 0:00:06]} 33. Qf2 {[%emt 0:00:03]} Red8 {[%emt 0:00:25]} 34. Re1 {[%emt 0:01:41]} Qc6 {[%emt 0:00:56]} 35. Qe3 {[%emt 0:01:50]} Rd7 {[%emt 0:00:19]} 36. Kh2 {[%emt 0:02:04]} Rbd8 {[%emt 0:00:11]} 37. Rg3 {[%emt 0:00:09]} Bd6 {[%emt 0:01:08]} 38. h5 {[%emt 0:01:39]} Bb8 {[%emt 0:00:58]} 39. Kh3 {[%emt 0:02:17]} Rd1 {[%emt 0:00:46]} 40. Kg4 {[%emt 0:00:56]} Qd7 {[%emt 0:00:22]} 41. Rxd1 {[%emt 0:02:54]} Qxd1+ {[%emt 0:00:04]} 42. Kh4 {[%emt 0:00:21]} Qd2 {[%emt 0:00:43]} 43. Qxd2 {[%emt 0:01:05]} Rxd2 {[%emt 0:00:05]} 44. Kg4 {[%emt 0:00:01]} Kf8 {[%emt 0:01:00]} 45. Rf3 {[%emt 0:01:29]} Ke7 {[%emt 0:00:14]} 46. Nc3 {[%emt 0:00:26]} Kd7 {[%emt 0:00:57]} 47. Ne4 {[%emt 0:01:34]} Rd4 {[%emt 0:00:06]} 48. Nxc5+ {[%emt 0:00:04]} Kc6 {[%emt 0:00:05]} 49. Na4 {[%emt 0:04:37]} e5 {[%emt 0:00:15]} 50. Kf5 {[%emt 0:00:36]} Rxf4+ {[%emt 0:00:31]} 51. Rxf4 {[%emt 0:00:04]} exf4 {[%emt 0:00:05]} 52. Ke4 {[%emt 0:00:05]} Bd6 {[%emt 0:00:22]} 53. Nb2 {[%emt 0:02:36]} Bc7 {[%emt 0:02:10]} 54. Nd3 {[%emt 0:00:08]} Bd6 {[%emt 0:00:12]} 55. Nxf4 {[%emt 0:05:48]} Bxf4 {[%emt 0:01:20]} 1-0

[Event "1st Sakatam Open 2024"]
[Site "Guwahati"]
[Date "2024.03.24"]
[Round "3.3"]
[White "Abhirup Saikia"]
[Black "Subhayan Kundu"]
[Result "0-1"]
[ECO "C70"]
[WhiteElo "1684"]
[BlackElo "2353"]
[Annotator "RC"]
[PlyCount "96"]
[EventDate "2024.03.24"]
[EventType "swiss"]
[EventCountry "IND"]
[SourceTitle "playchess.com"]
[Source "ChessBase"]
[SourceQuality "1"]
[TimeControl "5400+30"]

1. e4 {[%emt 0:00:03]} e5 {[%emt 0:02:38]} 2. Nf3 {[%emt 0:00:29]} Nc6 {[%emt 0:00:06]} 3. Bb5 {[%emt 0:00:14]} a6 {[%emt 0:01:24]} 4. Ba4 {[%emt 0:00:07]} b5 {[%emt 0:01:33]} 5. Bb3 {[%emt 0:00:06]} Na5 {[%emt 0:00:04]} 6. c3 {[%emt 0:01:03]} Nxb3 {[%emt 0:02:24]} 7. Qxb3 {[%emt 0:02:26]} Bb7 {[%emt 0:00:40]} 8. O-O {[%emt 0:02:56]} d6 {[%emt 0:05:10]} 9. Re1 {[%emt 0:05:33]} Nf6 {[%emt 0:01:23]} 10. d4 {[%emt 0:03:40]} Nxe4 {[%emt 0:02:39]} 11. a4 {[%emt 0:04:05]} b4 {[%emt 0:32:26]} 12. dxe5 {[%emt 0:13:25]} dxe5 {[%emt 0:00:36]} 13. Nxe5 {[%emt 0:01:11]} Qf6 {[%emt 0:00:38]} 14. Ng4 {[%emt 0:02:26]} Qg6 {[%emt 0:09:51]} 15. f3 {[%emt 1:00:16]} O-O-O {[%emt 0:00:35]} 16. cxb4 {[%emt 0:00:00]} Qb6+ {[%emt 0:07:37]} 17. Be3 {[%emt 0:00:00]} Qxb4 {[%emt 0:00:05]} 18. Qxb4 {[%emt 0:00:00]} Bxb4 {[%emt 0:00:01]} 19. Rc1 {[%emt 0:00:00]} Nd6 {[%emt 0:06:42]} 20. Bc5 {[%emt 0:00:00]} Bxc5+ {[%emt 0:00:38]} 21. Rxc5 {[%emt 0:00:00]} h5 {[%emt 0:03:35]} 22. Ne5 {[%emt 0:00:00]} f6 {[%emt 0:05:38]} 23. Ng6 {[%emt 0:00:00]} Rh6 {[%emt 0:01:48]} 24. Nf4 {[%emt 0:00:00]} g5 {[%emt 0:00:31]} 25. Ne6 {[%emt 0:00:00]} Rd7 {[%emt 0:00:11]} 26. Na3 {[%emt 0:00:00]} Re7 {[%emt 0:00:50]} 27. Nd4 {[%emt 0:00:00]} g4 {[%emt 0:00:24]} 28. f4 {[%emt 0:00:00]} Re4 {[%emt 0:02:14]} 29. Rd1 {[%emt 0:00:00]} Rh7 {[%emt 0:00:03]} 30. f5 {[%emt 0:00:00]} Rhe7 {[%emt 0:01:19]} 31. Ne6 {[%emt 0:00:00]} Kb8 {[%emt 0:00:04]} 32. Nd4 {[%emt 0:00:00]} Re1+ {[%emt 0:01:43]} 33. Rxe1 {[%emt 0:00:00]} Rxe1+ {[%emt 0:00:01]} 34. Kf2 {[%emt 0:00:00]} Re4 {[%emt 0:00:04]} 35. Ne2 {[%emt 0:00:00]} Rxa4 {[%emt 0:00:17]} 36. Nc3 {[%emt 0:00:00]} Rb4 {[%emt 0:00:35]} 37. Ke3 {[%emt 0:00:00]} Rxb2 {[%emt 0:00:10]} 38. Ne2 {[%emt 0:00:00]} Rb3+ {[%emt 0:00:08]} 39. Rc3 {[%emt 0:00:00]} Rxa3 {[%emt 0:00:04]} 40. Rxa3 {[%emt 0:00:00]} Nc4+ {[%emt 0:00:01]} 41. Kf4 {[%emt 0:00:00]} Nxa3 {[%emt 0:00:01]} 42. Ng3 {[%emt 0:00:00]} a5 {[%emt 0:02:00]} 43. Nxh5 {[%emt 0:00:00]} a4 {[%emt 0:00:03]} 44. Nxf6 {[%emt 0:00:00]} Nb5 {[%emt 0:02:12]} 45. Nd7+ {[%emt 0:00:00]} Kc8 {[%emt 0:00:04]} 46. Nc5 {[%emt 0:00:00]} a3 {[%emt 0:00:05]} 47. f6 {[%emt 0:00:00]} Bd5 {[%emt 0:00:07]} 48. f7 {[%emt 0:00:00]} Bxf7 {[%emt 0:00:05]} 0-1